bitfinex-derivatives/quotes_BTCF0:USTF0_20250918
["timestamp","ask_amount","ask_price","bid_price","bid_amount"]
[1758206616664,0.45583612,117820.0,117810.0,1.31048865]
[1758206617349,0.01344,117860.0,117850.0,0.00832]
[1758206617549,0.01344,117860.0,117850.0,1.63095224]
[1758206617945,0.01344,117860.0,117850.0,2.20095224]
[1758206618152,0.01344,117860.0,117850.0,1.90095224]
[1758206618449,0.01344,117860.0,117850.0,1.92095224]
[1758206618649,0.01344,117860.0,117850.0,1.98737637]
[1758206618847,0.01544,117860.0,117850.0,2.34817637]
[1758206619047,0.002,117860.0,117850.0,2.76827249]
[1758206619352,0.002,117860.0,117850.0,2.34817637]
[1758206619647,0.002,117860.0,117850.0,2.76827249]
[1758206619954,0.002,117860.0,117850.0,2.78171264]
[1758206620153,0.005,117860.0,117850.0,2.78171264]
[1758206620349,0.005,117860.0,117850.0,2.73171264]
[1758206620557,0.005,117860.0,117850.0,3.06171264]
[1758206620758,0.002,117860.0,117850.0,3.06171264]
[1758206620952,0.005,117860.0,117850.0,3.06171264]
[1758206621354,0.005,117860.0,117850.0,2.64161652]
[1758206621756,0.005,117860.0,117850.0,2.07161652]
[1758206621963,0.005,117860.0,117850.0,2.57161652]
[1758206622557,0.005,117860.0,117850.0,1.78917652]
[1758206622759,0.005,117860.0,117850.0,2.57153652]
[1758206623067,0.005,117860.0,117850.0,2.99163264]
[1758206623262,0.005,117860.0,117850.0,2.20927264]
[1758206623463,0.71178612,117860.0,117850.0,0.01344015]
[1758206623766,1.07258612,117860.0,117850.0,0.42841612]
[1758206623961,1.49268224,117860.0,117850.0,0.00832]
[1758206624363,1.49268224,117860.0,117850.0,0.7906]
[1758206624672,0.03669,117850.0,117840.0,0.08853232]
[1758206624869,0.45678612,117850.0,117840.0,0.87071232]
[1758206625266,0.03669,117850.0,117840.0,1.65160844]
[1758206625467,0.03669,117850.0,117840.0,2.07170456]
[1758206625666,0.01354,117860.0,117840.0,2.07170456]
[1758206625876,0.03669,117860.0,117850.0,0.78921612]
[1758206626372,0.45778612,117860.0,117850.0,0.79056]
[1758206626672,1.23868224,117860.0,117850.0,1.21065612]
[1758206626871,1.23868224,117860.0,117850.0,0.42841612]
[1758206627068,0.81858612,117860.0,117850.0,0.42841612]
[1758206627272,1.23868224,117860.0,117850.0,1.21065612]
[1758206627667,1.23868224,117860.0,117850.0,0.79056]
[1758206627871,1.23868224,117860.0,117850.0,0.42841612]
[1758206628071,1.23868224,117860.0,117850.0,1.21065612]
[1758206628871,0.45778612,117860.0,117850.0,1.21065612]
[1758206629376,0.45778612,117860.0,117850.0,0.00832]
[1758206629575,0.45778612,117860.0,117850.0,0.42841612]
[1758206629776,0.45778612,117860.0,117850.0,1.21065612]
[1758206630179,0.03769,117860.0,117850.0,1.21065612]
[1758206630371,0.03769,117860.0,117850.0,1.57145612]
[1758206631967,0.45778612,117860.0,117850.0,1.57145612]
[1758206632376,1.12788224,117860.0,117840.0,0.08021232]
[1758206632680,0.81758612,117850.0,117840.0,0.44177977]
[1758206632877,0.03669,117840.0,117830.0,0.00842]
[1758206633174,1.23768224,117840.0,117830.0,1.27825943]
[1758206633378,1.23768224,117840.0,117830.0,1.21061612]
[1758206633772,0.81758612,117840.0,117830.0,1.21061612]
[1758206634384,0.81758612,117840.0,117830.0,1.22478291]
[1758206634575,1.23768224,117840.0,117830.0,1.22678291]
[1758206634775,1.23768224,117840.0,117830.0,0.02448679]
[1758206634978,1.23768224,117840.0,117830.0,1.22678291]
[1758206635573,1.23768224,117840.0,117830.0,0.44458291]
[1758206635774,1.23768224,117840.0,117830.0,1.22678291]
[1758206636279,1.48768224,117840.0,117830.0,0.003]
[1758206636670,1.48768224,117840.0,117830.0,0.7852]
[1758206637584,1.48768224,117840.0,117830.0,0.003]
[1758206639775,1.48768224,117840.0,117830.0,0.002]
[1758206640079,0.01306,117830.0,117820.0,1.21607823]
[1758206640278,0.81593612,117830.0,117820.0,1.29091572]
[1758206640880,0.81593612,117830.0,117820.0,0.8708196]
[1758206641082,0.81593612,117830.0,117820.0,1.29291572]
[1758206641280,0.81593612,117830.0,117820.0,1.29391572]
[1758206641675,0.81593612,117830.0,117820.0,0.8738196]
[1758206642085,0.81593612,117830.0,117820.0,1.29391572]
[1758206642586,0.01306,117830.0,117820.0,2.65481184]
[1758206642787,0.01364,117840.0,117820.0,2.65481184]
[1758206643081,0.03552,117840.0,117830.0,0.78921612]
[1758206643286,0.03542,117840.0,117830.0,0.78921612]
[1758206643584,0.45551612,117840.0,117830.0,0.42841612]
[1758206644487,0.45551612,117840.0,117830.0,0.42941612]
[1758206645387,0.81631612,117840.0,117830.0,0.42941612]
[1758206645584,0.81631612,117840.0,117830.0,0.00932]
[1758206645787,0.81631612,117840.0,117830.0,0.42941612]
[1758206647493,1.48641224,117840.0,117830.0,0.78324]
[1758206648986,1.90650836,117840.0,117830.0,0.001]
[1758206649892,1.48641224,117840.0,117830.0,0.001]
[1758206650492,2.26865224,117840.0,117830.0,0.001]
[1758206650691,1.42846,117840.0,117830.0,0.001]
[1758206650892,2.26865224,117840.0,117830.0,0.001]
[1758206651096,2.68874836,117840.0,117830.0,0.001]
[1758206652293,2.26865224,117840.0,117830.0,0.001]
[1758206652488,2.26965224,117840.0,117830.0,0.001]
[1758206652792,2.26965224,117840.0,117820.0,0.78234]
[1758206653095,0.81593612,117830.0,117820.0,0.78224]
[1758206653286,1.23603224,117830.0,117810.0,0.06762587]
[1758206653491,0.01306,117810.0,117800.0,2.0453]
[1758206653695,0.79395612,117810.0,117800.0,3.00283517]
[1758206654197,0.37386,117810.0,117800.0,3.00283517]
[1758206654385,0.43315612,117810.0,117800.0,3.00283517]
[1758206654585,0.43315612,117810.0,117800.0,3.01683517]
[1758206654586,0.43415612,117810.0,117800.0,3.01683517]
[1758206656196,0.43415612,117810.0,117800.0,3.08435316]
[1758206656494,0.43415612,117810.0,117800.0,3.09335316]
[1758206656900,1.23703224,117810.0,117800.0,0.03621905]
[1758206657196,1.23703224,117810.0,117800.0,0.81849905]
[1758206657395,1.23703224,117810.0,117800.0,0.80528]
[1758206657595,1.23703224,117810.0,117800.0,0.81803053]
[1758206657789,1.23703224,117810.0,117800.0,0.80528]
[1758206657998,1.48703224,117810.0,117800.0,0.023]
[1758206658401,2.26935224,117810.0,117800.0,0.023]
[1758206660995,1.48703224,117810.0,117800.0,0.023]
[1758206661504,2.26939224,117810.0,117800.0,0.023]
[1758206661804,1.98969058,117810.0,117800.0,0.023]
[1758206662706,1.70944529,117810.0,117800.0,0.023]
[1758206663506,0.92708529,117810.0,117800.0,0.023]
[1758206663898,0.92708529,117810.0,117800.0,0.03132]
[1758206669007,0.92708529,117810.0,117800.0,0.023]
[1758206669406,0.92708529,117810.0,117800.0,0.03132]
[1758206670511,0.67708529,117810.0,117800.0,0.31156529]
[1758206671105,0.67708529,117810.0,117800.0,0.03132]
[1758206674714,0.67608529,117810.0,117800.0,0.00932]
[1758206675215,0.67608529,117810.0,117800.0,0.28956529]
[1758206676104,0.67608529,117810.0,117800.0,0.79168]
[1758206677209,0.39584,117810.0,117800.0,0.79168]
[1758206677406,0.39584,117810.0,117800.0,1.07192529]
[1758206677407,0.67608529,117810.0,117800.0,1.07192529]
[1758206677608,0.03504,117810.0,117800.0,1.96297058]
[1758206678416,0.03504,117810.0,117800.0,1.68272529]
[1758206678715,0.03504,117810.0,117800.0,1.96297058]
[1758206679414,0.03504,117810.0,117800.0,1.71297058]
[1758206679815,0.01306,117810.0,117800.0,1.71297058]
[1758206680114,0.01306,117810.0,117800.0,2.02297058]
[1758206680313,0.01306,117810.0,117800.0,1.49061058]
[1758206680709,0.01306,117810.0,117800.0,2.27293058]
[1758206681210,0.01306,117810.0,117800.0,1.49061058]
[1758206681415,0.01306,117810.0,117800.0,1.96293058]
[1758206682216,0.03011222,117820.0,117800.0,2.56293058]
[1758206682417,0.05126222,117820.0,117810.0,0.64936529]
[1758206682620,0.05116222,117820.0,117810.0,0.64936529]
[1758206683117,0.05116222,117820.0,117810.0,0.92936529]
[1758206683311,0.05116222,117820.0,117810.0,0.64936529]
[1758206683506,0.05216222,117820.0,117810.0,1.1514]
[1758206683718,0.05216222,117820.0,117810.0,1.43164529]
[1758206684017,0.05216222,117820.0,117810.0,0.64936529]
[1758206684516,0.05216222,117820.0,117810.0,1.43164529]
[1758206684817,0.05216222,117820.0,117810.0,1.43264529]
[1758206685016,0.05116222,117820.0,117810.0,1.43264529]
[1758206686019,0.05116222,117820.0,117810.0,0.65036529]
[1758206686320,0.05116222,117820.0,117810.0,1.43264529]
[1758206686620,0.05116222,117820.0,117810.0,0.65036529]
[1758206686812,0.05116222,117820.0,117810.0,1.43260529]
[1758206688416,0.05116222,117820.0,117810.0,0.65036529]
[1758206688714,0.05116222,117820.0,117810.0,1.43256529]
[1758206689326,0.05116222,117820.0,117810.0,0.65036529]
[1758206689523,0.05116222,117820.0,117810.0,1.43256529]
[1758206690325,0.05116222,117820.0,117810.0,1.15228]
[1758206690622,0.05116222,117820.0,117810.0,1.43252529]
[1758206693113,0.05116222,117820.0,117810.0,1.56252529]
[1758206693318,0.01685222,117820.0,117810.0,1.43252529]
[1758206693522,0.01685222,117820.0,117810.0,1.89252529]
[1758206694325,0.01685222,117820.0,117810.0,0.65036529]
[1758206694525,0.01685222,117820.0,117810.0,1.92248529]
[1758206696832,0.05083222,117820.0,117810.0,1.58244529]
[1758206697031,0.05083222,117820.0,117810.0,1.92244529]
[1758206697332,0.02958222,117820.0,117810.0,1.57244529]
[1758206697527,0.01685222,117820.0,117810.0,1.87244529]
[1758206697733,0.01685222,117820.0,117810.0,1.09036529]
[1758206698037,0.01685222,117820.0,117810.0,1.87244529]
[1758206700027,0.01685222,117820.0,117810.0,1.09036529]
[1758206700229,0.03069222,117820.0,117810.0,1.09036529]
[1758206700427,0.03069222,117820.0,117810.0,1.87240529]
[1758206700835,0.01685222,117820.0,117810.0,1.87240529]
[1758206701133,0.01685222,117820.0,117810.0,2.15265058]
[1758206701335,0.01685222,117820.0,117810.0,2.56856311]
[1758206701530,0.01685222,117820.0,117810.0,1.78652311]
[1758206701833,0.01326,117830.0,117810.0,2.28827782]
[1758206702036,0.03627,117830.0,117820.0,0.64936529]
[1758206702235,0.03617,117830.0,117820.0,1.15936529]
[1758206702531,0.03617,117830.0,117820.0,0.87912]
[1758206702734,0.03617,117830.0,117820.0,0.79032]
[1758206702735,0.67721529,117830.0,117820.0,0.79032]
[1758206702921,0.92721529,117830.0,117820.0,0.79032]
[1758206703234,0.03695,117820.0,117810.0,0.0011]
[1758206703428,0.95824058,117820.0,117810.0,0.00932]
[1758206703621,0.95824058,117820.0,117810.0,0.79128]
[1758206703825,0.67799529,117820.0,117810.0,0.79028]
[1758206704035,0.31719529,117820.0,117810.0,0.79028]
[1758206704327,0.31719529,117820.0,117810.0,1.07052529]
[1758206705233,0.03695,117820.0,117810.0,1.07052529]
[1758206705721,0.31719529,117820.0,117810.0,1.07052529]
[1758206706433,0.03695,117820.0,117810.0,1.07152529]
[1758206707530,0.03695,117820.0,117810.0,0.28956529]
[1758206707727,0.03695,117820.0,117810.0,0.00932]
[1758206707933,0.03695,117820.0,117810.0,0.28956529]
[1758206708133,0.03695,117820.0,117810.0,0.89956529]
[1758206708334,0.31719529,117820.0,117810.0,0.89956529]
[1758206708535,0.31719529,117820.0,117810.0,1.68148529]
[1758206708729,0.03695,117820.0,117810.0,1.68148529]
[1758206709329,0.03695,117820.0,117810.0,0.61932]
[1758206709532,0.03695,117820.0,117810.0,1.68148529]
[1758206709727,0.31719529,117820.0,117810.0,1.68148529]
[1758206709923,0.03695,117820.0,117810.0,1.68148529]
[1758206715134,0.03695,117820.0,117810.0,1.78739782]
[1758206715438,0.01384,117820.0,117810.0,1.68148529]
[1758206717339,0.01384,117820.0,117810.0,2.04228529]
[1758206717734,0.01326,117830.0,117810.0,2.32773058]
[1758206717939,0.03627,117830.0,117820.0,0.92961058]
[1758206718239,0.01306,117830.0,117820.0,1.53552311]
[1758206718739,0.01306,117830.0,117820.0,2.31740311]
[1758206718940,0.03617,117830.0,117820.0,0.97503253]
[1758206719143,0.39697,117830.0,117820.0,1.39611253]
[1758206719434,0.67821529,117830.0,117820.0,0.78856529]
[1758206719640,0.67821529,117830.0,117820.0,1.57040529]
[1758206720041,0.67821529,117830.0,117820.0,0.50832]
[1758206720336,0.39797,117830.0,117820.0,1.57040529]
[1758206720544,0.39697,117830.0,117820.0,0.78956529]
[1758206720935,0.67721529,117830.0,117820.0,1.29116]
[1758206721233,0.67721529,117830.0,117820.0,0.50932]
[1758206721433,0.67721529,117830.0,117820.0,1.35912124]
[1758206721741,0.39697,117830.0,117820.0,0.07728124]
[1758206721934,0.67721529,117830.0,117820.0,0.85912124]
[1758206722134,0.67721529,117830.0,117820.0,0.07728124]
[1758206722341,0.67721529,117830.0,117820.0,0.85912124]
[1758206723843,0.67721529,117830.0,117820.0,1.27923619]
[1758206723844,0.81708495,117830.0,117820.0,1.27923619]
[1758206725046,0.39697,117830.0,117820.0,1.27923619]
[1758206725247,0.81708495,117830.0,117820.0,0.07728124]
[1758206725444,0.81708495,117830.0,117820.0,0.85908124]
[1758206725844,1.4871999,117830.0,117820.0,0.7828]
[1758206726049,1.50444478,117830.0,117820.0,0.7828]
[1758206727847,1.50444478,117830.0,117820.0,0.001]
[1758206732944,0.0342,117820.0,117810.0,0.79018]
[1758206733140,1.2352299,117820.0,117810.0,0.79008]
[1758206733852,1.2352299,117820.0,117810.0,0.00832]
[1758206734046,1.2352299,117820.0,117800.0,0.0001]
[1758206734346,0.0342,117800.0,117790.0,1.60605769]
[1758206734552,0.45431495,117800.0,117790.0,1.55584274]
[1758206734751,0.45431495,117800.0,117790.0,1.97595769]
[1758206735152,0.45431495,117800.0,117790.0,1.87004516]
[1758206735651,0.8744299,117800.0,117790.0,1.87004516]
[1758206735851,0.45431495,117800.0,117790.0,1.87004516]
[1758206736355,0.45431495,117800.0,117790.0,1.87204516]
[1758206736654,0.45431495,117800.0,117790.0,1.45193021]
[1758206736848,0.45431495,117800.0,117790.0,1.87204516]
[1758206737253,0.45431495,117800.0,117790.0,1.51304516]
[1758206737956,0.0342,117800.0,117790.0,1.51304516]
[1758206738549,0.45431495,117800.0,117790.0,1.51304516]
[1758206739448,0.45431495,117800.0,117790.0,1.50304516]
[1758206740753,0.8744299,117800.0,117790.0,1.50304516]
[1758206741255,0.8744299,117800.0,117790.0,1.08293021]
[1758206741454,0.8744299,117800.0,117790.0,1.50304516]
[1758206742148,0.8744299,117800.0,117790.0,1.08293021]
[1758206742454,0.8744299,117800.0,117790.0,0.30117021]
[1758206742653,0.8744299,117800.0,117790.0,1.50308516]
[1758206743051,0.45431495,117800.0,117790.0,1.08297021]
[1758206743242,1.2352299,117800.0,117790.0,1.02516021]
[1758206743442,1.2352299,117800.0,117790.0,1.44527516]
[1758206743654,1.2352299,117800.0,117790.0,1.02516021]
[1758206744242,0.395,117800.0,117790.0,1.02516021]
[1758206744450,1.2352299,117800.0,117790.0,1.02516021]
[1758206745144,1.2352299,117800.0,117790.0,1.44527516]
[1758206745649,1.2352299,117800.0,117790.0,1.02516021]
[1758206745850,1.2352299,117800.0,117790.0,1.44527516]
[1758206746556,1.2352299,117800.0,117790.0,1.02516021]
[1758206748446,1.2352299,117800.0,117790.0,1.44527516]
[1758206748757,1.2352299,117800.0,117790.0,1.02516021]
[1758206748956,1.2352299,117800.0,117790.0,1.44527516]
[1758206749551,0.395,117800.0,117790.0,1.44527516]
[1758206749744,1.2352299,117800.0,117790.0,1.44527516]
[1758206750858,0.45431495,117800.0,117790.0,1.44527516]
[1758206751649,0.0342,117800.0,117790.0,1.44527516]
[1758206751851,0.45431495,117800.0,117790.0,1.02516021]
[1758206752154,0.45431495,117800.0,117790.0,1.44527516]
[1758206752349,0.0342,117800.0,117790.0,1.44527516]
[1758206752554,0.45431495,117800.0,117790.0,1.44527516]
[1758206753061,0.0342,117800.0,117790.0,1.44527516]
[1758206753256,0.45431495,117800.0,117790.0,1.44527516]
[1758206753457,0.45431495,117800.0,117790.0,1.42588239]
[1758206755160,0.0342,117800.0,117790.0,1.42588239]
[1758206755365,0.45431495,117800.0,117790.0,1.42588239]
[1758206755556,0.45431495,117800.0,117790.0,1.53179492]
[1758206756354,1.2352299,117800.0,117790.0,1.53179492]
[1758206756649,1.2352299,117800.0,117790.0,1.11167997]
[1758206756853,1.2352299,117800.0,117790.0,1.53179492]
[1758206758063,1.2352299,117800.0,117790.0,0.32987997]
[1758206758258,1.90534485,117800.0,117790.0,0.10891253]
[1758206758557,1.90534485,117800.0,117790.0,0.003]
[1758206758750,1.4852299,117800.0,117790.0,0.7848]
[1758206759367,1.4852299,117800.0,117790.0,0.003]
[1758206762467,1.4852299,117800.0,117790.0,0.01132]
[1758206763269,1.4852299,117800.0,117790.0,0.003]
[1758206763962,1.4852299,117800.0,117790.0,0.01132]
[1758206765461,0.0342,117800.0,117790.0,0.43143495]
[1758206766064,0.0342,117800.0,117790.0,0.79223495]
[1758206766860,0.45431495,117800.0,117790.0,0.79223495]
[1758206767062,0.0342,117800.0,117790.0,0.79223495]
[1758206767262,0.45431495,117800.0,117790.0,1.15524]
[1758206767463,0.0342,117800.0,117790.0,1.15524]
[1758206767671,0.0342,117800.0,117790.0,1.57535495]
[1758206767872,0.01287,117800.0,117790.0,1.82535495]
[1758206768089,0.4503386,117810.0,117790.0,2.4654699]
[1758206768266,0.05233365,117810.0,117800.0,0.8485499]
[1758206768573,0.05223365,117810.0,117800.0,1.2093499]
[1758206768765,0.4723486,117810.0,117800.0,1.2093499]
[1758206768965,0.4723486,117810.0,117800.0,1.9965499]
[1758206769162,0.05223365,117810.0,117800.0,1.9965499]
[1758206769363,0.4723486,117810.0,117800.0,1.57643495]
[1758206769564,0.8331486,117810.0,117800.0,0.79656]
[1758206769775,0.8331486,117810.0,117800.0,1.21667495]
[1758206770270,0.8331486,117810.0,117800.0,1.21663495]
[1758206771176,0.8331486,117810.0,117800.0,0.00932]
[1758206771467,0.8331486,117810.0,117800.0,0.79652]
[1758206771973,0.8331486,117810.0,117800.0,0.00932]
[1758206772162,0.8331486,117810.0,117800.0,0.79628]
[1758206773071,0.8331486,117810.0,117800.0,0.00932]
[1758206773266,1.25326355,117810.0,117800.0,0.00932]
[1758206773578,1.25326355,117810.0,117800.0,0.78772]
[1758206773875,1.25326355,117810.0,117800.0,0.001]
[1758206774465,0.8331486,117810.0,117800.0,0.00932]
[1758206775078,0.8331486,117810.0,117800.0,0.001]
[1758206775370,0.41303365,117810.0,117800.0,0.00932]
[1758206775566,0.8331486,117810.0,117800.0,0.00932]
[1758206777875,0.8331486,117810.0,117800.0,0.001]
[1758206778075,0.8331486,117810.0,117800.0,0.00932]
[1758206779571,0.8331486,117810.0,117800.0,0.001]
[1758206779869,1.50326355,117810.0,117800.0,0.001]
[1758206781280,2.28986355,117810.0,117800.0,0.001]
[1758206783177,1.50326355,117810.0,117800.0,0.001]
[1758206783372,2.28990355,117810.0,117800.0,0.001]
[1758206783577,2.29086355,117810.0,117800.0,0.001]
[1758206785874,2.01118177,117810.0,117800.0,0.001]
[1758206786781,1.45063365,117810.0,117800.0,0.001]
[1758206786971,2.01118177,117810.0,117800.0,0.001]
[1758206789077,1.73350771,117810.0,117800.0,0.001]
[1758206789274,1.73350771,117810.0,117800.0,0.56986812]
[1758206789275,0.05223365,117810.0,117800.0,0.56986812]
[1758206789481,0.05223365,117810.0,117800.0,1.69063406]
[1758206790476,0.33250771,117810.0,117800.0,1.32979406]
[1758206790879,0.33250771,117810.0,117800.0,1.32967406]
[1758206791182,0.69330771,117810.0,117800.0,0.00932]
[1758206791380,0.69330771,117810.0,117800.0,0.001]
[1758206792080,0.97358177,117810.0,117800.0,0.001]
[1758206792276,0.69330771,117810.0,117800.0,0.001]
[1758206792478,0.97358177,117810.0,117800.0,0.001]
[1758206792678,0.69330771,117810.0,117800.0,0.001]
[1758206792879,0.97358177,117810.0,117800.0,0.001]
[1758206793383,1.22358177,117810.0,117800.0,0.001]
[1758206799188,1.22358177,117810.0,117790.0,0.0001]
[1758206799385,0.03517,117790.0,117780.0,0.03133908]
[1758206799576,0.67624406,117790.0,117780.0,0.04115908]
[1758206800787,0.67724406,117790.0,117780.0,0.05615908]
[1758206800988,0.69466528,117790.0,117780.0,0.03643389]
[1758206802678,0.97493934,117790.0,117780.0,0.015]
[1758206803090,0.97493934,117790.0,117780.0,0.024]
[1758206803478,1.76345934,117790.0,117780.0,0.024]
[1758206803790,0.97493934,117790.0,117780.0,0.024]
[1758206803989,0.69466528,117790.0,117780.0,0.024]
[1758206805883,0.69466528,117790.0,117780.0,0.03392]
[1758206806485,1.48290528,117790.0,117780.0,0.03392]
[1758206806786,0.69466528,117790.0,117780.0,0.03392]
[1758206806981,0.41439122,117790.0,117780.0,0.03392]
[1758206807189,0.69466528,117790.0,117780.0,0.03392]
[1758206807392,1.48286528,117790.0,117780.0,0.024]
[1758206808088,0.69466528,117790.0,117780.0,0.024]
[1758206808289,1.48286528,117790.0,117780.0,0.024]
[1758206809891,0.97493934,117790.0,117780.0,0.024]
[1758206810392,0.41439122,117790.0,117780.0,0.024]
[1758206810591,1.48270528,117790.0,117780.0,0.024]
[1758206811492,0.69466528,117790.0,117780.0,0.024]
[1758206811688,0.69466528,117790.0,117780.0,0.03392]
[1758206811895,0.05359122,117790.0,117780.0,0.03392]
[1758206812089,0.33386528,117790.0,117780.0,0.03392]
[1758206812485,0.03617,117790.0,117780.0,0.56419406]
[1758206812689,0.31644406,117790.0,117780.0,0.92499406]
[1758206812895,0.31644406,117790.0,117780.0,0.56419406]
[1758206813287,0.31644406,117790.0,117780.0,0.28392]
[1758206815498,0.31644406,117790.0,117780.0,0.03392]
[1758206818900,0.31644406,117790.0,117780.0,0.31419406]
[1758206819499,0.03617,117790.0,117780.0,0.31419406]
[1758206820500,0.31644406,117790.0,117780.0,1.10107406]
[1758206820797,0.31644406,117790.0,117780.0,0.03392]
[1758206820991,0.31644406,117790.0,117780.0,0.82068]
[1758206822195,0.31644406,117790.0,117780.0,0.82076]
[1758206822586,0.31644406,117790.0,117780.0,0.8206]
[1758206822787,0.31644406,117790.0,117780.0,0.03392]
[1758206824997,0.03617,117790.0,117780.0,0.03392]
[1758206825196,0.31644406,117790.0,117780.0,0.03392]
[1758206825798,0.67724406,117790.0,117780.0,0.03392]
[1758206829301,0.03617,117790.0,117780.0,0.03392]
[1758206829601,0.31644406,117790.0,117780.0,0.03392]
[1758206832301,0.67724406,117790.0,117780.0,0.03392]
[1758206832502,0.67724406,117790.0,117780.0,0.024]
[1758206833004,0.67724406,117790.0,117780.0,0.03392]
[1758206833500,0.69438278,117790.0,117780.0,0.03392]
[1758206833708,0.69438278,117790.0,117780.0,0.024]
[1758206834406,0.69438278,117790.0,117780.0,0.03392]
[1758206836102,0.65921278,117790.0,117780.0,0.024]
[1758206836502,1.18948684,117790.0,117780.0,0.024]
[1758206836909,0.90921278,117790.0,117780.0,0.024]
[1758206837610,1.18948684,117790.0,117780.0,0.024]
[1758206837804,0.90921278,117790.0,117780.0,0.024]
[1758206838203,1.18948684,117790.0,117780.0,0.024]
[1758206839810,1.97400684,117790.0,117780.0,0.024]
[1758206840509,2.2542809,117790.0,117780.0,0.024]
[1758206840715,1.97400684,117790.0,117780.0,0.024]
[1758206841108,2.00956684,117790.0,117780.0,0.024]
[1758206842013,2.00956684,117790.0,117770.0,0.0001]
[1758206842014,0.03556,117780.0,117770.0,0.0001]
[1758206842204,0.05309746,117770.0,117760.0,0.0001]
[1758206842411,0.03556,117760.0,117750.0,0.0001]
[1758206842609,0.39636,117760.0,117750.0,0.2624]
[1758206842915,0.39636,117760.0,117750.0,0.27273744]
[1758206843313,0.39636,117760.0,117750.0,0.03273744]
[1758206843721,0.01267,117750.0,117740.0,1.27084848]
[1758206843916,0.29294406,117750.0,117740.0,1.03685332]
[1758206844113,0.28027406,117750.0,117740.0,1.03685332]
[1758206844419,0.29294406,117750.0,117740.0,1.03685332]
[1758206844619,0.29294406,117750.0,117740.0,1.01697737]
[1758206845121,0.29294406,117750.0,117740.0,1.02297737]
[1758206845321,0.29294406,117750.0,117740.0,1.30325143]
[1758206845520,0.41377837,117760.0,117750.0,0.0224]
[1758206845716,0.01721837,117760.0,117750.0,1.95963406]
[1758206846022,0.02988837,117760.0,117750.0,1.94763406]
[1758206846225,0.01721837,117760.0,117750.0,1.66736]
[1758206846411,0.01721837,117760.0,117750.0,2.03251636]
[1758206846613,0.01721837,117760.0,117750.0,2.57251636]
[1758206846919,0.01773746,117770.0,117750.0,2.76790812]
[1758206847220,0.01267,117800.0,117790.0,0.0344]
[1758206847221,0.02289,117800.0,117790.0,0.0344]
[1758206847416,0.03556,117800.0,117790.0,2.02243406]
[1758206847611,0.31583406,117800.0,117790.0,1.38136]
[1758206847818,0.45583403,117800.0,117790.0,1.78963403]
[1758206848014,0.02982365,117810.0,117790.0,2.16243403]
[1758206848317,0.47298768,117810.0,117800.0,0.80347403]
[1758206848618,0.47298768,117810.0,117800.0,0.3832]
[1758206849017,0.04004365,117810.0,117800.0,0.80347403]
[1758206849219,0.37347,117820.0,117800.0,1.76284806]
[1758206849220,0.01267,117820.0,117800.0,1.76284806]
[1758206849418,0.45583403,117820.0,117810.0,1.17016]
[1758206850218,0.81663403,117820.0,117810.0,0.80936]
[1758206850423,0.81663403,117820.0,117810.0,0.0224]
[1758206850614,1.23690806,117820.0,117810.0,0.0224]
[1758206850819,0.01277,117810.0,117800.0,0.78772]
[1758206851020,0.87501806,117810.0,117800.0,0.02208]
[1758206851219,1.23581806,117810.0,117800.0,0.02208]
[1758206851417,1.23581806,117810.0,117800.0,0.001]
[1758206851721,0.01277,117800.0,117790.0,0.87645337]
[1758206852020,1.23581806,117800.0,117790.0,0.90627337]
[1758206852219,1.23581806,117800.0,117790.0,0.90615337]
[1758206852418,1.23581806,117800.0,117790.0,0.87615337]
[1758206852618,1.23581806,117800.0,117790.0,0.87607337]
[1758206852818,1.23581806,117800.0,117790.0,0.85499337]
[1758206853020,1.49381806,117800.0,117790.0,0.001]
[1758206853219,1.51076181,117800.0,117790.0,0.001]
[1758206854324,1.93103584,117800.0,117790.0,0.001]
[1758206854519,1.93503584,117800.0,117790.0,0.001]
[1758206855215,0.03447,117790.0,117780.0,0.78666]
[1758206855419,1.23581806,117790.0,117780.0,0.78656]
[1758206856515,0.03447,117780.0,117770.0,0.06731615]
[1758206856726,1.23581806,117780.0,117770.0,0.06721615]
[1758206856923,1.23581806,117780.0,117760.0,1.4051]
[1758206856924,0.01277,117770.0,117760.0,1.4051]
[1758206857116,0.87501806,117770.0,117760.0,0.859]
[1758206857316,1.23581806,117770.0,117760.0,0.80744]
[1758206857716,1.23581806,117770.0,117760.0,0.78636]
[1758206858630,1.23581806,117770.0,117760.0,0.80744]
[1758206858933,1.23681806,117770.0,117760.0,0.81444]
[1758206859833,0.7905793,117770.0,117760.0,0.81444]
[1758206860034,0.7905793,117770.0,117760.0,0.82044]
[1758206860621,0.7905793,117770.0,117760.0,0.88709834]
[1758206861527,0.4297793,117770.0,117760.0,0.88709834]
[1758206861933,0.4297793,117770.0,117760.0,0.89619834]
[1758206862323,0.4297793,117770.0,117760.0,0.88709834]
[1758206864132,0.7905793,117770.0,117760.0,0.07965834]
[1758206864339,1.0405793,117770.0,117760.0,0.013]
[1758206866431,1.0405793,117770.0,117760.0,0.03408]
[1758206866938,1.0405793,117770.0,117760.0,0.013]
[1758206867744,1.0405793,117770.0,117760.0,0.03408]
[1758206868341,0.39627,117770.0,117760.0,0.03408]
[1758206868535,0.7905793,117770.0,117760.0,0.03408]
[1758206870240,0.7905793,117770.0,117760.0,0.013]
[1758206870642,0.7905793,117770.0,117760.0,0.03408]
[1758206875044,0.7905793,117770.0,117760.0,0.013]
[1758206877449,0.7905793,117770.0,117760.0,0.03627]
[1758206881849,1.23746956,117770.0,117760.0,0.03627]
[1758206883451,0.81686978,117770.0,117760.0,0.03627]
[1758206883750,0.45606978,117770.0,117760.0,0.03627]
[1758206885051,0.81686978,117770.0,117760.0,0.03627]
[1758206885256,0.39627,117770.0,117760.0,0.03627]
[1758206885453,0.81686978,117770.0,117760.0,0.03627]
[1758206886052,1.23746956,117770.0,117760.0,0.03627]
[1758206886349,1.23746956,117770.0,117760.0,0.013]
[1758206891155,2.02246956,117770.0,117760.0,0.013]
[1758206891354,1.23746956,117770.0,117760.0,0.013]
[1758206891551,2.02246956,117770.0,117760.0,0.03632]
[1758206891755,1.23746956,117770.0,117760.0,0.03632]
[1758206892255,0.39627,117770.0,117760.0,0.03632]
[1758206892452,1.23746956,117770.0,117760.0,0.03632]
[1758206895560,1.23746956,117770.0,117760.0,0.013]
[1758206896364,1.23746956,117770.0,117760.0,0.03632]
[1758206896557,1.23746956,117770.0,117760.0,0.013]
[1758206898656,2.02362956,117770.0,117760.0,0.013]